bitfinex/quotes_SOLUSD_20220101
["timestamp","ask_amount","ask_price","bid_price","bid_amount"]
[1641021418837,98.55244344,172.53,172.38,102.4049]
[1641021419037,106.99601137,172.53,172.38,73.4121]
[1641021419535,8.6997,172.49,172.4,8.699]
[1641021419935,10.58087048,172.49,172.4,8.959]
[1641021420838,10.58087048,172.49,172.41,5.70126981]
[1641021421038,10.58087048,172.49,172.41,5.96126981]
[1641021421635,10.58087048,172.49,172.41,14.66036981]
[1641021421836,1.38117048,172.49,172.41,14.66036981]
[1641021422236,1.6446651,172.47,172.41,15.16036981]
[1641021423237,1.6446651,172.48,172.41,15.16036981]
[1641021423437,1.6446651,172.48,172.41,14.66036981]
[1641021424537,1.6446651,172.47,172.41,14.66036981]
[1641021425940,2.1446651,172.47,172.41,14.66036981]
[1641021426238,3.9780601,172.47,172.41,14.66036981]
[1641021427538,3.9780601,172.47,172.41,15.16036981]
[1641021428943,3.9780601,172.47,172.41,14.66036981]
[1641021429343,3.9780601,172.47,172.41,15.16036981]
[1641021429742,2.333395,172.47,172.41,15.16036981]
[1641021432245,2.333395,172.47,172.41,14.66036981]
[1641021432653,2.333395,172.47,172.41,15.16036981]
[1641021433648,3.9780601,172.47,172.41,6.46126981]
[1641021433855,3.9780601,172.47,172.41,5.96126981]
[1641021434351,2.333395,172.47,172.41,5.96126981]
[1641021435070,3.9780601,172.47,172.41,5.96126981]
[1641021435571,3.9780601,172.47,172.41,14.65986981]
[1641021435971,2.333395,172.47,172.41,14.65986981]
[1641021436272,1.6446651,172.48,172.41,14.65986981]
[1641021437073,1.6446651,172.48,172.41,15.15986981]
[1641021437973,1.6446651,172.49,172.41,15.15986981]
[1641021438180,1.6446651,172.49,172.42,1.2296]
[1641021438380,1.6446651,172.49,172.42,10.4274]
[1641021438578,1.6446651,172.49,172.42,10.6874]
[1641021438774,1.6446651,172.49,172.42,10.1874]
[1641021439180,1.6446651,172.49,172.43,5.70126981]
[1641021439579,1.6446651,172.49,172.43,5.96126981]
[1641021440281,1.6446651,172.49,172.43,14.65886981]
[1641021441179,1.6446651,172.49,172.43,5.96126981]
[1641021444283,2.1446651,172.49,172.43,5.96126981]
[1641021444487,1.6446651,172.48,172.43,5.96126981]
[1641021444884,2.1446651,172.48,172.43,5.96126981]
[1641021445490,1.6446651,172.48,172.43,5.96126981]
[1641021447988,12.48942453,172.48,172.43,0.00126981]
[1641021448187,19.80242453,172.48,172.43,0.00126981]
[1641021448386,1.6446651,172.46,172.43,0.00126981]
[1641021448586,6.06439994,172.45,172.43,0.00126981]
[1641021448987,8.20906504,172.45,172.43,0.00126981]
[1641021449388,16.91036504,172.45,172.43,0.00126981]
[1641021449690,8.20906504,172.45,172.43,0.00126981]
[1641021449888,7.70906504,172.45,172.43,0.00126981]
[1641021451489,6.06439994,172.45,172.43,0.00126981]
[1641021452793,6.56439994,172.45,172.43,0.00126981]
[1641021453993,6.06439994,172.45,172.43,0.00126981]
[1641021454695,1.6446651,172.44,172.43,0.00126981]
[1641021455295,6.06439994,172.45,172.43,0.00126981]
[1641021456696,6.56439994,172.45,172.43,0.00126981]
[1641021457097,8.20906504,172.45,172.43,0.00126981]
[1641021457798,16.91036504,172.45,172.43,0.00126981]
[1641021458003,16.41036504,172.45,172.43,0.00126981]
[1641021458204,7.70906504,172.45,172.43,0.00126981]
[1641021461527,8.20906504,172.45,172.43,0.00126981]
[1641021461724,7.70906504,172.45,172.43,0.00126981]
[1641021463426,1.6446651,172.45,172.43,0.00126981]
[1641021464428,1.6446651,172.49,172.43,0.00126981]
[1641021464629,2.1446651,172.49,172.43,0.00126981]
[1641021464826,3.52932453,172.49,172.43,0.00126981]
[1641021465627,12.22862453,172.49,172.43,0.00126981]
[1641021465927,12.48862453,172.49,172.43,0.00126981]
[1641021466731,1.6446651,172.48,172.43,0.00126981]
[1641021466927,10.3445651,172.48,172.43,0.00126981]
[1641021467629,1.6446651,172.48,172.43,0.00126981]
[1641021467829,1.88465943,172.48,172.43,0.00126981]
[1641021468628,1.38465943,172.48,172.43,0.00126981]
[1641021468825,1.88465943,172.48,172.43,0.00126981]
[1641021469431,1.38465943,172.48,172.43,0.00126981]
[1641021469630,10.08445943,172.48,172.43,0.00126981]
[1641021469832,1.38465943,172.48,172.43,0.00126981]
[1641021470536,1.88465943,172.48,172.43,0.00126981]
[1641021470938,1.38465943,172.48,172.43,0.00126981]
[1641021472337,1.6446651,172.49,172.43,0.00126981]
[1641021473140,10.3433651,172.5,172.43,0.00126981]
[1641021473739,1.6446651,172.49,172.43,0.00126981]
[1641021473941,10.3441651,172.49,172.43,0.00126981]
[1641021474139,10.8441651,172.49,172.43,0.00126981]
[1641021474340,10.3441651,172.49,172.43,0.00126981]
[1641021474741,10.8441651,172.49,172.43,0.00126981]
[1641021474940,12.22882453,172.49,172.43,0.00126981]
[1641021475138,12.48882453,172.49,172.43,0.00126981]
[1641021475539,1.6446651,172.48,172.43,0.00126981]
[1641021475742,8.7009,172.46,172.43,0.00126981]
[1641021476041,6.06439994,172.45,172.43,0.00126981]
[1641021476446,7.70906504,172.45,172.43,0.00126981]
[1641021477246,8.20906504,172.45,172.43,0.00126981]
[1641021479047,7.70906504,172.45,172.43,0.00126981]
[1641021480649,6.06439994,172.45,172.43,0.00126981]
[1641021480853,7.44905937,172.45,172.43,0.00126981]
[1641021481250,9.09372447,172.45,172.43,0.00126981]
[1641021483552,7.44905937,172.45,172.43,0.00126981]
[1641021484955,9.09372447,172.45,172.43,0.00126981]
[1641021486661,7.44905937,172.45,172.43,0.00126981]
[1641021487675,7.94905937,172.45,172.43,0.00126981]
[1641021493489,6.06439994,172.45,172.43,0.00126981]
[1641021493890,7.70906504,172.45,172.43,0.00126981]
[1641021497595,6.06439994,172.45,172.43,0.00126981]
[1641021499298,1.6446651,172.47,172.43,0.00126981]
[1641021500600,3.02932453,172.48,172.43,0.00126981]
[1641021501001,1.6446651,172.48,172.43,0.00126981]
[1641021501604,2.333395,172.51,172.43,0.00126981]
[1641021502302,2.833395,172.51,172.43,0.00126981]
[1641021502502,1.6446651,172.48,172.43,0.00126981]
[1641021504307,2.4046651,172.48,172.43,0.00126981]
[1641021504507,11.1045651,172.48,172.43,0.00126981]
[1641021505006,1.6446651,172.46,172.43,0.00126981]
[1641021505407,6.06439994,172.45,172.43,0.00126981]
[1641021506008,3.03219997,172.45,172.43,0.00126981]
[1641021506211,1.6446651,172.46,172.43,0.00126981]
[1641021506431,1.6446651,172.48,172.43,0.00126981]
[1641021507230,1.6446651,172.49,172.43,0.00126981]
[1641021508037,1.6446651,172.49,172.43,8.69886981]
[1641021508336,3.02932453,172.49,172.43,8.69886981]
[1641021508634,3.02932453,172.49,172.43,8.95886981]
[1641021508835,3.02932453,172.49,172.43,9.45886981]
[1641021509032,3.02932453,172.49,172.43,0.26126981]
[1641021509433,1.38465943,172.49,172.43,0.00126981]
[1641021510235,3.02932453,172.49,172.43,0.00126981]
[1641021514437,1.38465943,172.49,172.43,0.00126981]
[1641021516039,1.38465943,172.49,172.43,1.32256981]
[1641021516238,1.38465943,172.49,172.43,1.58256981]
[1641021518645,3.02932453,172.49,172.43,1.58256981]
[1641021518845,1.6446651,172.49,172.43,1.58256981]
[1641021519044,1.38465943,172.48,172.43,1.58256981]
[1641021520045,1.38465943,172.48,172.43,2.08256981]
[1641021520946,1.38465943,172.48,172.43,1.58256981]
[1641021523748,3.02932453,172.48,172.43,1.58256981]
[1641021524148,1.38465943,172.47,172.43,1.58256981]
[1641021533881,1.88465943,172.47,172.43,0.26126981]
[1641021534081,1.88465943,172.47,172.43,0.00126981]
[1641021534282,3.02932453,172.47,172.43,0.00126981]
[1641021534886,1.6446651,172.47,172.43,0.00126981]
[1641021535987,1.6446651,172.46,172.43,0.00126981]
[1641021536487,6.06439994,172.45,172.43,0.00126981]
[1641021540092,1.6446651,172.48,172.43,0.00126981]
[1641021541090,3.02932453,172.49,172.43,0.00126981]
[1641021543094,3.52932453,172.49,172.43,0.00126981]
[1641021543293,3.02932453,172.49,172.43,0.00126981]
[1641021543693,1.6446651,172.48,172.43,0.00126981]
[1641021544096,1.6446651,172.47,172.43,0.00126981]
[1641021550003,1.6446651,172.48,172.43,0.00126981]
[1641021550409,1.6446651,172.47,172.43,0.00126981]
[1641021551104,3.03679941,172.48,172.43,0.00126981]
[1641021553109,3.03679941,172.48,172.43,25.58612967]
[1641021553309,1.39213431,172.48,172.43,25.58612967]
[1641021553506,1.39213431,172.48,172.43,25.84612967]
[1641021554309,1.39213431,172.48,172.43,0.26126981]
[1641021554509,1.39213431,172.48,172.43,0.00126981]
[1641021556212,1.89213431,172.48,172.43,0.00126981]
[1641021556417,10.59193431,172.48,172.43,0.00126981]
[1641021556613,10.85193431,172.48,172.43,0.00126981]
[1641021556814,10.35193431,172.48,172.43,0.00126981]
[1641021557018,1.39213431,172.48,172.43,0.00126981]
[1641021557413,1.6446651,172.46,172.43,0.00126981]
[1641021557619,3.03219997,172.45,172.43,0.00126981]
[1641021557818,1.6446651,172.46,172.43,0.00126981]
[1641021558415,1.39213431,172.48,172.43,0.00126981]
[1641021561638,3.03679941,172.48,172.43,0.00126981]
[1641021561838,3.53679941,172.48,172.43,0.00126981]
[1641021562041,6.13019441,172.48,172.43,0.00126981]
[1641021562240,8.702,172.45,172.43,0.00126981]
[1641021562440,6.06439994,172.44,172.43,0.00126981]
[1641021562740,7.45653425,172.44,172.43,0.00126981]
[1641021562940,6.06439994,172.44,172.43,0.00126981]
[1641021564342,16.15853425,172.44,172.43,0.00126981]
[1641021564546,16.91853425,172.44,172.43,0.00126981]
[1641021564742,16.41853425,172.44,172.43,0.00126981]
[1641021565142,18.06319935,172.44,172.43,0.00126981]
[1641021565544,16.41853425,172.44,172.43,0.00126981]
[1641021565942,16.91853425,172.44,172.43,0.00126981]
[1641021566945,18.56319935,172.44,172.43,0.00126981]
[1641021567549,9.60119935,172.44,172.43,0.00126981]
[1641021568148,7.95653425,172.44,172.43,0.00126981]
[1641021569651,9.60119935,172.44,172.43,0.00126981]
[1641021569853,18.30319935,172.44,172.43,0.00126981]
[1641021570252,16.91853425,172.44,172.43,0.00126981]
[1641021575262,16.65853425,172.44,172.43,0.00126981]
[1641021575463,15.26639994,172.44,172.43,0.00126981]
[1641021575661,16.65853425,172.44,172.43,0.00126981]
[1641021576562,16.91853425,172.44,172.43,0.00126981]
[1641021576963,16.65853425,172.44,172.43,0.00126981]
[1641021577163,15.26639994,172.44,172.43,0.00126981]
[1641021579989,16.6547805,172.44,172.43,0.00126981]
[1641021580590,15.26639994,172.44,172.43,0.00126981]
[1641021580790,6.56439994,172.44,172.43,0.00126981]
[1641021581791,6.06439994,172.44,172.43,0.00126981]
[1641021582593,6.56439994,172.44,172.43,0.00126981]
[1641021582793,6.06439994,172.44,172.43,0.00126981]
[1641021583394,16.91518668,172.44,172.43,0.00126981]
[1641021583594,16.41518668,172.44,172.43,0.00126981]
[1641021583997,7.71328668,172.44,172.43,0.00126981]
[1641021585796,8.47328668,172.44,172.43,0.00126981]
[1641021586302,9.86166724,172.44,172.31,153.5705]
[1641021586497,9.86166724,172.44,172.26,1.2701]
[1641021586695,9.86166724,172.44,172.27,10.5077]
[1641021586696,18.56366724,172.44,172.27,10.5077]
[1641021587097,1.64888674,172.39,172.27,10.5077]
[1641021587297,1.64888674,172.39,172.28,1.2823]
[1641021587499,2.14888674,172.39,172.28,2.0423]
[1641021588700,0.5,172.39,172.3,8.7036]
[1641021588905,2.14888674,172.4,172.3,9.2036]
[1641021589101,2.40888674,172.4,172.3,9.4636]
[1641021589501,2.40888674,172.4,172.31,1.2539]
[1641021589901,2.40888674,172.4,172.31,1.7539]
[1641021590103,2.40888674,172.4,172.31,2.0139]
[1641021590303,0.76,172.4,172.31,1.5139]
[1641021590501,0.5,172.4,172.31,1.5139]
[1641021590704,12.38788674,172.41,172.31,1.5139]
[1641021590905,1.38838056,172.39,172.31,1.2539]
[1641021591203,1.64838056,172.39,172.31,1.2539]
[1641021591406,2.14838056,172.39,172.31,1.2539]
[1641021591603,1.88838056,172.39,172.31,1.2539]
[1641021591804,1.88838056,172.39,172.27,76.4161]
[1641021592004,1.64888674,172.4,172.31,8.7033]
[1641021592204,1.64888674,172.4,172.32,24.76845771]
[1641021592404,1.64888674,172.4,172.32,25.26845771]
[1641021592604,1.64888674,172.4,172.32,25.52845771]
[1641021592806,1.64888674,172.4,172.33,1.3433]
[1641021593003,1.64888674,172.41,172.33,10.3055]
[1641021593204,1.64888674,172.41,172.33,10.8055]
[1641021593405,1.64888674,172.41,172.33,12.23219368]
[1641021593604,1.64888674,172.45,172.33,12.23219368]
[1641021594304,1.64888674,172.45,172.33,91.31829368]
[1641021595206,88.3279,172.47,172.33,91.31829368]
[1641021595408,88.5879,172.47,172.33,91.31829368]
[1641021595806,88.3279,172.47,172.33,91.31829368]
[1641021596006,1.64888674,172.47,172.33,91.31829368]
[1641021596605,3.98228174,172.48,172.33,91.31829368]
[1641021600712,2.333395,172.48,172.33,91.31829368]
[1641021602312,1.64888674,172.47,172.33,91.31829368]
[1641021604713,1.64888674,172.47,172.33,91.05829368]
[1641021605315,3.0372673,172.47,172.33,89.6316]
[1641021606119,3.0372673,172.47,172.33,89.8916]
[1641021606718,3.0372673,172.47,172.37,8.6999]
[1641021606919,3.0372673,172.47,172.37,9.1999]
[1641021607118,3.0372673,172.47,172.37,9.4599]
[1641021608120,3.0372673,172.47,172.38,1.2411]
[1641021608523,3.0372673,172.47,172.38,2.0011]
[1641021608722,1.64888674,172.46,172.38,2.0011]
[1641021609324,1.64888674,172.46,172.38,1.5011]
[1641021610127,1.64888674,172.46,172.38,2.0011]
[1641021614044,1.64888674,172.46,172.38,1.5011]
[1641021614244,3.0372673,172.46,172.38,0.26]
[1641021614450,3.7972673,172.46,172.38,0.26]
[1641021614647,3.7972673,172.46,172.35,0.26]
[1641021615146,3.7972673,172.46,172.33,81.1281]
[1641021615347,3.7972673,172.46,172.34,1.339]
[1641021615547,1.64888674,172.44,172.34,1.599]
[1641021615947,3.5372673,172.44,172.34,1.599]
[1641021616146,3.0372673,172.44,172.34,2.099]
[1641021616347,3.7972673,172.44,172.34,1.339]
[1641021617247,12.4993673,172.44,172.33,79.0861]
[1641021617452,1.88838056,172.44,172.33,79.5861]
[1641021617647,1.64888674,172.45,172.33,79.8461]
[1641021617847,1.64888674,172.45,172.34,1.3228]
[1641021618047,1.64888674,172.45,172.34,1.5828]
[1641021618248,1.38838056,172.45,172.35,8.7007]
[1641021618647,1.38838056,172.45,172.35,8.9607]
[1641021619155,1.38838056,172.45,172.36,1.281]
[1641021619657,1.38838056,172.45,172.36,1.541]
[1641021622064,1.38838056,172.45,172.36,10.2417]
[1641021622262,1.38838056,172.45,172.36,10.7417]
[1641021623261,75.71258674,172.47,172.36,10.7417]
[1641021623463,76.21258674,172.47,172.36,10.7417]
[1641021623863,77.6009673,172.47,172.36,10.7417]
[1641021625165,1.64888674,172.45,172.36,10.7417]
[1641021625967,3.0372673,172.45,172.36,10.7417]
[1641021627167,1.64888674,172.45,172.36,10.7417]
[1641021627869,1.64888674,172.46,172.36,10.7417]
[1641021628469,1.64888674,172.46,172.36,10.2417]
[1641021629270,1.64888674,172.46,172.36,10.7417]
[1641021629672,1.64888674,172.47,172.36,10.7417]
[1641021630300,3.98228174,172.48,172.36,10.7417]
[1641021632304,1.64888674,172.47,172.36,10.7417]
[1641021632904,1.64888674,172.46,172.36,10.7417]
[1641021633506,1.64888674,172.47,172.36,10.7417]
[1641021634305,1.64888674,172.46,172.36,10.7417]
[1641021637408,1.64888674,172.46,172.36,10.4817]
[1641021637812,1.64888674,172.46,172.36,0.5]
[1641021638211,1.64888674,172.46,172.34,87.3918]
[1641021638412,1.64888674,172.45,172.34,9.2014]
[1641021638614,10.35048674,172.45,172.34,9.2014]
[1641021639018,1.64888674,172.45,172.34,9.4614]
[1641021639218,1.64888674,172.45,172.35,1.2741]
[1641021639418,1.64888674,172.45,172.35,10.475]
[1641021639618,1.64888674,172.45,172.35,10.735]
[1641021639819,1.64888674,172.46,172.35,10.735]
[1641021640721,10.34978674,172.46,172.35,10.735]
[1641021642553,1.64888674,172.46,172.35,10.735]
[1641021643755,3.98228174,172.48,172.35,10.735]
[1641021644156,1.64888674,172.46,172.35,10.735]
[1641021645560,10.34928674,172.47,172.35,10.735]
[1641021645960,10.60928674,172.47,172.35,10.735]
[1641021647258,1.64888674,172.46,172.35,10.735]
[1641021654865,1.64888674,172.46,172.36,1.42669368]
[1641021655065,1.64888674,172.46,172.39,8.6991]
[1641021655264,3.98228174,172.48,172.4,27.2902851]
[1641021655465,3.98228174,172.48,172.4,28.0502851]
[1641021656666,3.98228174,172.48,172.4,29.3703851]
[1641021658269,3.98228174,172.48,172.4,38.0691851]
[1641021658468,3.98228174,172.48,172.4,37.5691851]
[1641021658868,3.98228174,172.48,172.4,38.0691851]
[1641021659267,3.98228174,172.48,172.4,37.5691851]
[1641021659868,3.98228174,172.48,172.4,38.0691851]
[1641021659869,2.333395,172.48,172.4,38.0691851]
[1641021660773,2.333395,172.48,172.4,37.5691851]
[1641021661172,2.333395,172.48,172.4,38.0691851]
[1641021662871,2.333395,172.48,172.4,37.5691851]
[1641021663071,2.333395,172.48,172.4,1.5801]
[1641021663271,2.833395,172.48,172.4,0.26]
[1641021663474,2.833395,172.48,172.33,182.0538]
[1641021663672,4.48228174,172.48,172.33,182.5538]
[1641021664073,4.48228174,172.48,172.34,1.2659]
[1641021664273,4.48228174,172.48,172.35,30.14630216]
[1641021664475,12.68218174,172.48,172.37,8.7]
[1641021664873,12.68218174,172.48,172.37,9.46]
[1641021665277,11.533295,172.48,172.38,1.2728]
[1641021665576,11.533295,172.48,172.38,2.0328]
[1641021665776,11.533295,172.48,172.38,0.76]
[1641021665979,13.18218174,172.48,172.38,0.26]
[1641021666178,13.18218174,172.48,172.35,30.90630216]
[1641021666384,12.68218174,172.48,172.35,30.90630216]
[1641021666577,11.033295,172.48,172.38,8.6998]
[1641021666777,1.38838056,172.47,172.38,8.6998]
[1641021666976,10.08858056,172.47,172.38,9.4598]
[1641021667978,1.64888674,172.46,172.38,9.4598]
[1641021669180,1.64888674,172.46,172.39,1.2746]
[1641021669581,3.0372673,172.46,172.33,152.7935]
[1641021669781,3.0372673,172.46,172.33,79.0861]
[1641021669782,3.5372673,172.46,172.33,79.0861]
[1641021669982,3.7972673,172.46,172.33,79.0861]
[1641021670180,3.7972673,172.46,172.21,15.13825214]
[1641021670381,12.96979802,172.46,172.25,77.7913]
[1641021670585,21.67079802,172.46,172.26,27.06713241]
[1641021670783,21.67079802,172.46,172.26,56.07813241]
[1641021670985,21.67079802,172.46,172.26,27.06713241]
[1641021671187,1.64888674,172.42,172.26,27.06713241]
[1641021671385,2.14888674,172.42,172.27,1.2631]
[1641021671583,3.5372673,172.42,172.27,1.5231]
[1641021671785,10.35268674,172.4,172.27,2.0231]
[1641021672185,1.64888674,172.4,172.27,2.0231]
[1641021673688,1.64888674,172.4,172.31,8.7032]
[1641021673892,10.35228674,172.41,172.31,9.2032]
[1641021674088,10.85228674,172.41,172.31,9.4632]
[1641021676015,10.35228674,172.41,172.31,9.4632]
[1641021676213,1.64888674,172.41,172.31,9.4632]
[1641021676913,1.64888674,172.43,172.31,9.4632]
[1641021677112,1.64888674,172.43,172.33,29.29271209]
[1641021677313,1.64888674,172.43,172.36,8.7004]
[1641021677513,1.64888674,172.43,172.36,8.9604]
[1641021677714,1.64888674,172.43,172.36,9.4604]
[1641021678918,1.64888674,172.44,172.36,9.4604]
[1641021680117,1.64888674,172.44,172.36,0.76]
[1641021680518,1.64888674,172.44,172.35,9.4613]
[1641021682219,1.64888674,172.43,172.35,9.4613]
[1641021683719,1.64888674,172.43,172.35,8.9613]
[1641021683922,1.38838056,172.42,172.35,0.26]
[1641021684219,1.38838056,172.42,172.32,75.1422]
[1641021684420,1.88838056,172.42,172.3,1.2556]
[1641021684622,1.64888674,172.41,172.3,1.7556]
[1641021685119,2.14888674,172.41,172.3,1.7556]
[1641021685524,10.85238674,172.41,172.3,10.4593]
[1641021685721,10.85238674,172.41,172.3,10.7193]
[1641021685922,1.64888674,172.4,172.3,10.7193]
[1641021686825,1.64888674,172.42,172.3,12.14599368]
[1641021687022,1.64888674,172.42,172.3,11.64599368]
[1641021687421,1.64888674,172.43,172.3,11.64599368]
[1641021688022,1.64888674,172.44,172.3,11.64599368]
[1641021688425,11.7390673,172.44,172.3,10.7193]
[1641021688623,11.7390673,172.44,172.3,10.2193]
[1641021689723,1.64888674,172.43,172.3,10.2193]
[1641021690525,1.64888674,172.43,172.3,10.7193]
[1641021690925,1.64888674,172.43,172.3,10.2193]
[1641021691125,3.0372673,172.43,172.3,10.2193]
[1641021691724,1.38838056,172.43,172.3,10.2193]
[1641021692726,1.64888674,172.44,172.3,10.2193]
[1641021693027,1.64888674,172.43,172.3,10.2193]
[1641021693229,3.0372673,172.43,172.3,10.2193]
[1641021693428,1.38838056,172.43,172.3,10.2193]
[1641021693724,1.64838056,172.43,172.3,10.2193]
[1641021694325,1.64888674,172.42,172.3,10.2193]
[1641021694925,11.9996673,172.43,172.3,10.2193]
[1641021696029,11.7396673,172.43,172.3,10.2193]
[1641021697033,1.64888674,172.43,172.3,10.2193]
[1641021700336,3.0372673,172.43,172.3,10.2193]
[1641021700736,11.7395673,172.43,172.3,10.2193]
[1641021700937,3.0372673,172.43,172.3,10.2193]
[1641021701364,1.64888674,172.43,172.3,10.2193]
[1641021701539,1.64888674,172.43,172.3,10.7193]
[1641021702436,1.64888674,172.43,172.3,10.2193]
[1641021703538,3.0372673,172.43,172.3,10.2193]
[1641021703740,11.7396673,172.43,172.3,10.2193]
[1641021703937,11.7396673,172.43,172.3,10.7193]
[1641021704139,11.7396673,172.43,172.3,10.2193]
[1641021704440,3.0372673,172.43,172.3,10.2193]
[1641021704640,1.64888674,172.42,172.3,10.2193]
[1641021706040,1.64888674,172.42,172.3,12.14599368]
[1641021706843,1.64888674,172.43,172.3,11.64599368]
[1641021707044,1.64888674,172.43,172.3,18.85199368]
[1641021707747,1.64888674,172.44,172.3,18.85199368]
[1641021708867,1.64888674,172.44,172.3,19.35199368]
[1641021709672,1.64888674,172.44,172.3,10.7193]
[1641021709871,3.0372673,172.44,172.3,10.2193]
[1641021710271,3.0372673,172.44,172.3,11.64599368]
[1641021710471,3.0372673,172.44,172.3,10.2193]
[1641021710870,3.0372673,172.44,172.3,10.7193]
[1641021711869,3.0372673,172.44,172.31,1.42669368]
[1641021712071,3.0372673,172.44,172.33,8.7017]
[1641021712474,3.0372673,172.44,172.33,8.9617]
[1641021713473,3.0372673,172.44,172.34,1.3137]
[1641021713872,3.0372673,172.44,172.34,1.5737]
[1641021716274,1.64888674,172.44,172.34,10.2749]
[1641021716477,1.64888674,172.44,172.34,16.3269]
[1641021717275,1.64888674,172.45,172.34,16.3269]
[1641021721480,3.2972673,172.45,172.34,1.3137]
[1641021722084,1.64888674,172.44,172.34,1.3137]
[1641021722684,1.64888674,172.42,172.3,85.901]
[1641021722884,1.64888674,172.42,172.31,1.3423]
[1641021723081,1.90888674,172.42,172.31,1.3423]
[1641021723490,1.64888674,172.41,172.31,1.3423]
[1641021723884,1.64888674,172.41,172.31,1.6023]
[1641021724082,10.35278674,172.41,172.31,1.6023]
[1641021724485,12.0011673,172.41,172.31,1.6023]
[1641021724982,12.0011673,172.41,172.31,1.3423]
[1641021725185,12.0011673,172.41,172.29,10.0473]
[1641021725384,12.0011673,172.41,172.29,1.3437]
[1641021725585,12.0011673,172.41,172.27,82.6822]
[1641021726283,12.0011673,172.41,172.28,1.3513]
[1641021726492,12.0011673,172.41,172.28,1.6113]
[1641021726683,1.64888674,172.38,172.28,1.6113]
[1641021727886,3.0372673,172.41,172.28,1.6113]
[1641021728090,11.7411673,172.41,172.28,10.3156]
[1641021728788,10.09228056,172.41,172.28,10.3156]
[1641021728990,10.09228056,172.41,172.29,1.42669368]
[1641021729188,10.09228056,172.41,172.29,10.13019368]
[1641021729388,8.7039,172.41,172.29,10.39019368]
[1641021729688,81.24038674,172.42,172.29,8.9635]
[1641021729890,1.64888674,172.4,172.29,8.9635]
[1641021730588,1.64888674,172.4,172.3,1.3462]
[1641021730789,1.64888674,172.4,172.3,10.0494]
[1641021730990,1.64888674,172.4,172.3,10.3094]
[1641021732392,1.64888674,172.41,172.3,10.8094]
[1641021732792,1.64888674,172.41,172.3,10.3094]
[1641021732994,1.64888674,172.4,172.3,10.3094]
[1641021733191,1.64888674,172.4,172.3,1.3462]
[1641021734491,1.64888674,172.4,172.3,1.6062]
[1641021734890,1.64888674,172.4,172.3,2.1062]
[1641021735493,1.90888674,172.4,172.3,2.1062]
[1641021736290,10.35318674,172.4,172.3,2.1062]
[1641021736491,1.64888674,172.4,172.3,1.6062]
[1641021737190,1.64888674,172.4,172.3,0.26]
[1641021737391,12.00512303,172.4,172.3,0.26]
[1641021737591,12.00512303,172.4,172.24,154.8746]
[1641021737793,1.64888674,172.39,172.24,154.8746]
[1641021737994,1.90888674,172.39,172.25,9.9923]
[1641021738192,3.30092303,172.39,172.25,9.9923]
[1641021738392,1.64888674,172.38,172.25,10.2523]
[1641021738593,1.90888674,172.38,172.25,10.2523]
[1641021739594,8.7058,172.37,172.25,10.2523]
[1641021740995,10.09783629,172.37,172.25,10.2523]
[1641021741995,10.35468674,172.37,172.25,10.2523]
[1641021742696,1.64888674,172.37,172.25,10.2523]
[1641021743297,1.64888674,172.39,172.25,10.2523]
[1641021743901,10.35438674,172.38,172.25,10.2523]
[1641021744498,8.9655,172.38,172.25,10.2523]
[1641021745098,1.64888674,172.37,172.25,10.2523]
[1641021745399,8.7061,172.36,172.25,10.2523]
[1641021745598,8.7061,172.36,172.25,1.5468]
[1641021747201,8.7061,172.36,172.25,2.0468]
[1641021747999,9.2061,172.36,172.25,2.0468]
[1641021748200,10.4676,172.36,172.25,2.0468]
[1641021748601,9.9676,172.36,172.25,1.5468]
[1641021749802,9.9676,172.36,172.25,2.0468]
[1641021752131,9.9676,172.36,172.25,1.5468]
[1641021752331,9.9676,172.36,172.25,2.0468]
[1641021752531,9.4676,172.36,172.25,2.0468]
[1641021754435,9.4676,172.36,172.25,1.5468]
[1641021754633,11.11648674,172.36,172.25,1.5468]
[1641021754833,11.11648674,172.36,172.25,2.0468]
[1641021755243,11.11648674,172.36,172.25,1.5468]
[1641021755436,11.11648674,172.36,172.25,2.0468]
[1641021757941,11.11648674,172.36,172.25,1.5468]
[1641021758539,11.11648674,172.36,172.25,2.0468]
[1641021761141,11.11648674,172.36,172.25,1.5468]
[1641021761342,11.61648674,172.36,172.25,1.5468]
[1641021761541,11.61648674,172.36,172.25,2.0468]
[1641021761841,11.11648674,172.36,172.25,2.0468]
[1641021762243,11.61648674,172.36,172.25,2.0468]
[1641021764444,11.61648674,172.36,172.25,10.753]
[1641021766450,11.11648674,172.36,172.25,10.753]
[1641021766647,11.11648674,172.36,172.25,1.2868]
[1641021766847,11.11648674,172.36,172.19,1.2672]
[1641021766848,13.26852303,172.36,172.19,1.2672]
[1641021767050,13.26852303,172.36,172.2,1.3477]